bitfinex-derivatives/quotes_ETHF0:USTF0_20250906
["timestamp","ask_amount","ask_price","bid_price","bid_amount"]
[1757166098077,0.7263,4294.4,4294.3,3.5156]
[1757166098675,0.4252,4294.4,4294.1,0.234]
[1757166098876,0.7263,4294.3,4294.2,0.3078]
[1757166101884,0.7263,4294.3,4294.2,0.5216]
[1757166103078,0.8764773,4294.3,4294.2,0.5216]
[1757166104485,0.8764773,4294.3,4294.2,0.7205]
[1757166105781,0.8764773,4294.3,4294.1,0.234]
[1757166105981,0.7263,4294.3,4293.9,0.3078]
[1757166106185,0.7263,4294.0,4293.9,0.5216]
[1757166106574,0.8439,4294.0,4293.6,35.3478]
[1757166106774,0.4252,4293.8,4293.7,0.5216]
[1757166107082,0.7263,4293.8,4293.7,0.5216]
[1757166108575,0.7263,4293.8,4293.7,0.7205]
[1757166112193,0.7263,4293.8,4293.7,0.5216]
[1757166112385,0.7263,4293.8,4293.7,0.7246]
[1757166119401,3.2078,4294.0,4293.7,0.9575]
[1757166119605,3.4049,4294.0,4293.9,0.4041]
[1757166119805,3.4049,4294.0,4293.9,0.7162]
[1757166120003,3.7133,4294.0,4293.9,0.7162]
[1757166120401,0.5055,4294.0,4293.9,0.7162]
[1757166120710,3.9132,4294.0,4293.9,0.7162]
[1757166120900,4.0346,4294.0,4293.9,0.5132]
[1757166122104,3.9132,4294.0,4293.9,0.7162]
[1757166124008,4.06314726,4294.0,4293.9,0.7162]
[1757166124211,4.06317099,4294.0,4293.9,0.7162]
[1757166125906,4.06319859,4294.0,4293.9,0.7162]
[1757166126308,4.6513719,4294.0,4293.9,0.7162]
[1757166127904,4.50137331,4294.0,4293.9,0.7162]
[1757166128110,4.65143625,4294.0,4293.9,0.7162]
[1757166130310,4.65143625,4294.0,4293.9,0.5132]
[1757166130504,4.77283625,4294.0,4293.9,0.5132]
[1757166131714,4.65143625,4294.0,4293.9,0.7162]
[1757166135113,4.65159219,4294.0,4293.9,0.7162]
[1757166135716,4.65159219,4294.0,4293.9,0.5132]
[1757166135916,4.77299219,4294.0,4293.9,0.5132]
[1757166136512,4.77299219,4294.0,4293.7,0.3121]
[1757166136717,0.397,4293.6,4293.5,0.7472]
[1757166136917,0.7054,4293.6,4293.5,0.7472]
[1757166137220,0.7054,4293.6,4293.5,0.9502]
[1757166139020,0.3207,4293.9,4293.5,0.7668]
[1757166139318,0.746,4293.9,4293.8,0.7144]
[1757166139507,1.48528486,4293.9,4293.8,0.7144]
[1757166142722,1.48528486,4293.9,4293.8,0.5131]
[1757166144524,1.48528486,4293.9,4293.8,0.7144]
[1757166152121,0.94958486,4293.9,4293.8,0.7144]
[1757166152428,3.2078,4294.2,4294.0,0.1287]
[1757166152619,0.15024348,4294.1,4294.0,0.5256]
[1757166153021,0.3207,4294.4,4294.0,4.75848]
[1757166153226,0.746,4294.8,4294.7,0.5131]
[1757166153522,1.48733531,4294.8,4294.7,0.5131]
[1757166154530,0.74133531,4294.8,4294.7,4.7144]
[1757166154832,0.746,4294.8,4294.7,0.9484]
[1757166155124,0.746,4294.8,4294.7,0.7144]
[1757166155325,0.746,4294.8,4294.7,0.9494]
[1757166156021,0.12,4295.0,4294.4,3.2078]
[1757166156222,0.4253,4294.8,4294.7,0.235]
[1757166156428,0.746,4294.8,4294.7,0.235]
[1757166156620,0.4253,4294.8,4294.4,3.2078]
[1757166156827,0.4253,4294.5,4294.4,3.9222]
[1757166157029,0.746,4294.5,4294.4,4.1562]
[1757166161427,0.866,4294.5,4294.4,3.4418]
[1757166161632,0.866,4294.5,4294.4,0.234]
[1757166162131,0.866,4294.5,4294.2,0.3175]
[1757166162328,0.3207,4294.4,4293.9,3.5253]
[1757166162528,0.866,4294.0,4293.9,3.5253]
[1757166162834,0.866,4294.0,4293.9,3.7593]
[1757166163237,0.866,4294.0,4293.9,3.7209]
[1757166163534,0.866,4294.0,4293.9,3.9549]
[1757166165834,0.746,4294.0,4293.9,3.9549]
[1757166166737,0.746,4294.0,4293.9,4.1562]
[1757166170839,0.746,4294.0,4293.9,0.9484]
[1757166175756,0.2103,4294.0,4293.9,0.9484]
[1757166175954,0.7127,4294.0,4293.9,0.9484]
[1757166179657,0.7127,4294.0,4293.9,0.5131]
[1757166179658,0.8353,4294.0,4293.9,0.5131]
[1757166185770,0.7127,4294.0,4293.9,0.5131]
[1757166186768,1.57469708,4294.0,4293.6,0.234]
[1757166186967,0.7087,4293.7,4293.6,0.234]
[1757166187269,1.44800304,4293.7,4293.6,0.5299]
[1757166187571,1.44800304,4293.7,4293.6,0.7306]
[1757166188866,4.65580304,4293.7,4293.6,0.7306]
[1757166193576,4.34820304,4293.7,4293.1,0.2959]
[1757166193874,0.7087,4293.2,4293.1,0.6924]
[1757166194075,0.7087,4293.2,4293.1,0.9264]
[1757166195773,0.2063,4293.2,4293.1,0.9264]
[1757166208786,0.3175,4293.4,4293.1,0.6305]
[1757166208992,0.15067729,4293.3,4293.2,0.7179]
[1757166209190,0.15067729,4293.3,4293.2,0.9519]
[1757166212991,0.3175,4293.5,4293.2,0.64]
[1757166213196,0.73193001,4293.4,4293.2,0.64]
[1757166213388,0.15075066,4293.3,4293.2,0.64]
[1757166213581,0.2101,4293.4,4293.3,0.7179]
[1757166213786,0.36087461,4293.4,4293.3,0.7179]
[1757166213988,0.94215381,4293.4,4293.3,0.7179]
[1757166215903,1.25965381,4293.4,4293.3,0.7179]
[1757166216488,1.25965381,4293.4,4292.6,3.2078]
[1757166216489,0.2101,4292.9,4292.6,3.2078]
[1757166216689,0.5276,4292.9,4292.8,0.58303856]
[1757166216889,0.2101,4292.9,4292.8,0.58303856]
[1757166217089,0.2101,4292.9,4292.8,0.89493856]
[1757166217690,0.5276,4293.2,4293.1,0.406]
[1757166217890,0.5276,4293.2,4293.1,0.7179]
[1757166217891,0.67855479,4293.2,4293.1,0.7179]
[1757166218098,0.94302421,4293.2,4293.1,0.9519]
[1757166219797,1.46052421,4293.2,4293.1,0.9519]
[1757166228507,1.46052421,4293.2,4293.1,0.7179]
[1757166228806,1.46052421,4293.2,4293.1,0.9519]
[1757166232409,1.45994153,4293.2,4293.1,0.9519]
[1757166232810,1.45994153,4293.2,4293.1,0.7179]
[1757166233010,1.45994153,4293.2,4293.1,0.9519]
[1757166239214,0.73234153,4293.2,4293.1,0.9519]
[1757166240806,0.94094153,4293.2,4293.1,0.9519]
[1757166241408,1.24344153,4293.2,4293.1,0.9519]
[1757166242209,0.94094153,4293.2,4293.1,0.9519]
[1757166242413,1.24344153,4293.2,4293.1,0.9519]
[1757166243114,0.73234153,4293.2,4293.1,0.9519]
[1757166243415,0.94421264,4293.2,4293.1,0.9519]
[1757166244206,0.73561264,4293.2,4293.1,0.9519]
[1757166244417,0.15037211,4293.2,4293.1,0.9519]
[1757166244818,0.35897211,4293.2,4293.1,0.9519]
[1757166245311,0.15037211,4293.2,4293.1,0.9519]
[1757166246213,0.66147211,4293.2,4293.1,0.9519]
[1757166246518,0.15037211,4293.2,4293.1,0.9519]
[1757166254221,3.2078,4294.2,4294.1,0.7332]
[1757166254423,3.79304793,4294.2,4294.1,0.9672]
[1757166254624,3.2078,4294.2,4294.1,0.9672]
[1757166255430,0.3025,4294.6,4294.2,0.3116]
[1757166255725,0.7248,4294.6,4294.5,0.524]
[1757166255925,1.3070839,4294.6,4294.5,0.758]
[1757166257526,1.3070839,4294.6,4294.5,0.4464]
[1757166258323,0.7248,4294.6,4294.5,0.4464]
[1757166259515,0.7248,4294.6,4294.5,0.234]
[1757166261031,0.7248,4294.6,4294.3,0.3116]
[1757166261223,0.8453,4294.5,4294.4,0.234]
[1757166262627,0.8453,4294.5,4294.4,0.4336]
[1757166262827,0.8453,4294.5,4294.4,0.7542]
[1757166263228,0.7169,4294.5,4294.4,0.9604]
[1757166265928,0.8453,4294.5,4294.4,0.9604]
[1757166268649,0.8453,4294.5,4294.4,0.4336]
[1757166268849,0.8453,4294.5,4294.4,0.234]
[1757166269152,0.8453,4294.5,4294.4,0.4336]
[1757166270547,0.8453,4294.5,4294.4,0.7542]
[1757166271150,0.8453,4294.5,4294.4,0.9604]
[1757166271948,0.7169,4294.5,4294.4,0.9604]
[1757166273751,0.295,4294.6,4294.5,0.5347]
[1757166274050,0.5051,4294.6,4294.5,0.8553]
[1757166274445,3.2078,4294.7,4294.6,0.7264]
[1757166274946,3.7129,4294.7,4294.6,0.7264]
[1757166275144,3.7129,4294.7,4294.6,0.91275521]
[1757166275545,0.5051,4294.7,4294.6,0.7264]
[1757166276946,0.5051,4294.7,4294.6,0.90894404]
[1757166277553,0.5051,4294.7,4294.6,0.7264]
[1757166277956,0.5051,4294.7,4294.6,0.91514653]
[1757166278256,0.5051,4294.7,4294.6,0.7264]
[1757166287159,0.7169,4294.7,4294.6,0.7264]
[1757166291157,0.2979,4295.0,4294.7,0.3154]
[1757166291456,0.4991,4295.0,4294.9,0.7165]
[1757166293357,3.7288,4295.5,4295.4,0.2071]
[1757166293562,4.68744502,4295.5,4295.4,0.7565]
[1757166293762,4.45464502,4295.5,4295.4,0.4411]
[1757166294064,4.75254502,4295.5,4295.4,0.4411]
[1757166294760,4.75254502,4295.5,4295.4,0.234]
[1757166296566,4.75245758,4295.5,4295.4,0.234]
[1757166297164,4.75245758,4295.5,4295.4,0.4411]
[1757166298062,4.75245758,4295.5,4295.4,0.7565]
[1757166298560,1.54465758,4295.5,4295.4,0.4411]
[1757166301166,1.54465758,4295.5,4295.4,0.234]
[1757166301669,1.54575065,4295.5,4295.4,0.234]
[1757166303874,1.54582091,4295.5,4295.4,0.234]
[1757166314578,1.54582091,4295.5,4295.0,1.39712402]
[1757166314784,0.6951,4295.1,4295.0,1.79822402]
[1757166314980,0.6951,4295.1,4295.0,2.03222402]
[1757166320786,0.4991,4295.1,4295.0,2.15542402]
[1757166322183,0.3165,4295.4,4295.1,0.3126]
[1757166322378,0.94317504,4295.3,4295.2,0.4013]
[1757166322583,0.94317504,4295.3,4295.2,0.7139]
[1757166323081,1.25967504,4295.3,4295.2,0.7139]
[1757166325583,1.46787504,4295.3,4295.2,0.7139]
[1757166329190,1.4678371,4295.3,4295.2,0.7139]
[1757166330893,1.4678371,4295.3,4295.2,0.9479]
[1757166331092,1.4678371,4295.3,4295.2,0.7139]
[1757166331293,1.4678371,4295.3,4295.2,0.9479]
[1757166336497,1.46776977,4295.3,4295.2,0.9479]
[1757166347500,0.88319478,4295.3,4295.2,0.9479]
[1757166354010,1.4673484,4295.3,4295.2,0.9479]
[1757166357317,0.7395,4295.3,4295.2,0.9479]
[1757166359117,0.7395,4295.3,4295.2,4.1557]
[1757166364924,0.5313,4295.3,4295.2,4.1557]
[1757166366627,0.7333,4295.3,4295.2,4.1557]
[1757166373429,0.5313,4295.3,4295.2,4.1557]
[1757166375627,0.2148,4295.3,4295.2,4.1557]
[1757166376325,0.52,4295.3,4295.2,4.1557]
[1757166376520,0.3052,4295.6,4295.2,4.1557]
[1757166376826,3.3316,4296.0,4295.2,4.1557]
[1757166376827,0.3052,4295.4,4295.3,0.6873]
[1757166377028,0.3052,4295.4,4295.3,1.96812969]
[1757166377239,3.3316,4296.0,4295.3,1.67422969]
[1757166377425,1.36559629,4295.9,4295.8,0.1945]
[1757166377732,1.13280629,4295.9,4295.8,0.4285]
[1757166377928,1.43800629,4295.9,4295.8,0.7224]
[1757166378126,1.43800629,4295.9,4295.8,0.4285]
[1757166380930,1.43800629,4295.9,4295.8,0.732]
[1757166381131,1.43800629,4295.9,4295.8,0.4285]
[1757166381936,1.43800629,4295.9,4295.8,0.732]
[1757166382134,1.43797663,4295.9,4295.8,0.732]
[1757166383127,1.43797663,4295.9,4295.8,0.4285]
[1757166387741,1.43797663,4295.9,4295.8,0.234]
[1757166390843,1.43797663,4295.9,4295.6,0.3035]
[1757166391042,1.45267663,4295.8,4295.7,0.444]
[1757166391942,1.45267663,4295.8,4295.7,0.7475]
[1757166393843,1.45267663,4295.8,4295.7,0.9617]
[1757166401549,1.45262001,4295.8,4295.7,0.9617]
[1757166405349,1.45262001,4295.8,4295.7,0.444]
[1757166406548,1.45262001,4295.8,4295.7,0.7475]
[1757166407269,1.45262001,4295.8,4295.7,0.444]
[1757166409046,1.45262001,4295.8,4295.7,0.21]
[1757166412252,1.45262001,4295.8,4295.7,0.5223]
[1757166414458,1.452349,4295.8,4295.7,0.5223]
[1757166416150,1.452349,4295.8,4295.7,0.7312]
[1757166419957,1.140549,4295.8,4295.5,0.5463]
[1757166420158,0.1249,4295.0,4294.7,5.371]
[1757166420362,0.7237,4294.8,4294.7,5.371]
[1757166420753,0.7237,4294.8,4294.7,0.1945]
[1757166420954,1.45032466,4294.8,4294.7,0.1945]
[1757166421159,1.30701272,4294.8,4294.7,0.1945]
[1757166421461,0.7237,4294.8,4294.7,0.1945]
[1757166422054,0.3075,4294.7,4294.5,3.2078]
[1757166422252,0.3075,4294.6,4294.5,3.2078]
[1757166422451,0.7237,4294.6,4294.5,3.2078]
[1757166423653,0.3075,4294.4,4294.3,0.234]
[1757166423964,0.86675329,4294.4,4294.3,0.234]
[1757166424165,0.7237,4294.4,4294.3,0.234]
[1757166426161,0.7237,4294.4,4294.0,1.39379727]
[1757166426465,0.7237,4294.2,4294.1,0.5068]
[1757166427864,0.7237,4294.2,4294.1,0.7408]
[1757166430359,0.7237,4294.2,4294.1,0.9497]
[1757166430659,0.5111,4294.2,4294.1,0.9497]
[1757166437175,0.7237,4294.2,4294.1,0.9497]
[1757166441573,0.7237,4294.2,4294.1,0.7157]
[1757166441770,0.7237,4294.2,4294.1,0.9497]
[1757166441981,0.7237,4294.2,4294.1,0.7157]
[1757166442183,0.7237,4294.2,4294.1,0.9497]
[1757166443382,0.7237,4294.2,4294.1,0.7157]
[1757166443680,0.7237,4294.2,4294.1,0.4285]
[1757166443884,0.7237,4294.2,4294.1,0.234]
[1757166444481,0.5118,4293.7,4293.6,0.308]
[1757166444781,0.7185,4293.7,4293.6,1.19678]
[1757166445691,0.7185,4293.7,4293.6,0.9639]
[1757166448084,0.7185,4293.7,4293.6,0.7299]
[1757166448284,0.7185,4293.7,4293.6,0.9639]
[1757166453995,0.7185,4293.7,4293.3,1.08149727]
[1757166453996,0.7185,4292.9,4292.8,0.39173856]
[1757166454183,4.65237401,4292.9,4292.8,0.69973856]
[1757166457396,3.9263,4292.9,4292.8,0.69973856]
[1757166458495,4.15925,4292.9,4292.8,0.17703856]
[1757166458702,0.7185,4291.6,4291.5,0.7299]
[1757166472118,0.7185,4291.6,4291.5,0.2147]
[1757166472316,0.7015,4291.3,4291.2,0.5388]
[1757166472615,0.7015,4291.3,4291.2,0.7411]
[1757166473202,0.3031,4291.2,4291.0,0.3048]
[1757166473403,0.7015,4291.2,4291.1,0.5005]
[1757166473604,0.7015,4291.2,4291.1,0.7028]
[1757166475913,0.5016,4291.2,4291.1,0.7028]
[1757166480125,0.1292,4291.5,4291.1,0.398]
[1757166480328,0.5016,4291.3,4291.2,0.5388]
[1757166480521,0.5016,4291.3,4291.2,0.9368]
[1757166481022,0.7015,4291.3,4291.2,0.9368]
[1757166482922,0.234,4292.1,4291.2,0.9368]
[1757166482923,0.3031,4292.1,4291.6,0.398]
[1757166483228,3.9093,4292.4,4292.3,0.2023]
[1757166483430,4.86659635,4292.4,4292.1,0.3048]
[1757166483629,0.5016,4291.7,4291.6,0.9368]
[1757166485517,3.2078,4292.9,4292.0,0.127]
[1757166485722,0.267,4293.3,4293.2,0.7028]
[1757166486029,0.4669,4293.3,4293.0,0.235]
[1757166486331,0.3984,4292.8,4292.7,3.7149]
[1757166486531,0.3984,4292.8,4292.7,3.9499]
[1757166486830,0.3984,4292.8,4292.7,4.1456]
[1757166487727,0.7015,4292.8,4292.7,4.1456]
[1757166490825,0.1292,4292.5,4292.2,3.2078]
[1757166491027,0.7015,4292.3,4292.2,3.2078]
[1757166491234,0.7015,4292.3,4292.2,3.4428]
[1757166491530,0.7015,4292.3,4292.2,3.6451]
[1757166491730,0.7015,4292.3,4292.2,0.4373]
[1757166492425,0.5016,4292.3,4292.2,0.9378]
[1757166492732,0.5016,4292.3,4292.2,4.1456]
[1757166494627,3.6062,4292.9,4292.8,0.398]
[1757166494832,3.9093,4292.9,4292.8,0.7028]
[1757166495032,0.7015,4292.9,4292.8,0.9378]
[1757166497030,4.3984,4292.9,4292.2,3.5126]
[1757166497333,0.5016,4292.3,4292.2,3.9106]
[1757166497526,0.5016,4292.3,4292.2,4.1456]
[1757166503237,0.7015,4292.3,4292.2,3.2078]
[1757166503438,0.7341,4291.6,4291.5,0.235]
[1757166503737,0.8552,4291.5,4291.2,0.235]
[1757166506540,0.3135,4291.4,4291.2,0.235]
[1757166506739,0.7341,4291.3,4291.2,0.4415]
[1757166507245,0.7341,4291.3,4291.2,0.2065]
[1757166507838,0.7341,4291.3,4291.0,0.5303]
[1757166508040,0.3135,4291.2,4291.0,0.5303]
[1757166508243,0.1211,4291.5,4291.1,0.2065]
[1757166508440,0.7341,4291.2,4291.1,0.2065]
[1757166510149,0.7341,4291.2,4291.0,0.235]
[1757166510343,0.1211,4291.0,4290.9,0.2065]
[1757166510543,0.8552,4291.0,4290.9,0.4415]
[1757166511146,0.8552,4291.0,4290.9,0.9404]
[1757166511348,0.7341,4291.0,4290.9,0.9404]
[1757166513750,0.5252,4291.0,4290.9,0.9404]
[1757166522752,0.3135,4291.0,4290.9,0.9404]
[1757166523254,0.5252,4291.0,4290.9,0.9404]
[1757166527956,0.3135,4291.4,4291.0,0.4126]
[1757166528257,0.5417,4291.5,4291.4,0.2065]
[1757166528650,0.8552,4291.5,4291.4,0.2065]
[1757166528852,0.8552,4291.5,4291.3,0.235]
[1757166529358,0.5008,4291.5,4291.4,0.7282]
[1757166529653,0.8383,4291.5,4291.4,0.7282]
[1757166531459,0.2959,4291.5,4291.4,0.7282]
[1757166532457,0.5008,4291.5,4291.4,0.7282]
[1757166533355,1.21498727,4291.5,4291.4,0.7282]
[1757166534859,0.7128,4291.4,4291.3,0.1983]
[1757166535060,1.42698727,4291.4,4291.3,0.1983]
[1757166536564,1.42698727,4291.4,4291.3,0.235]
[1757166542458,1.42698727,4291.4,4291.3,0.4333]
[1757166543866,1.42698727,4291.4,4291.3,0.235]
[1757166544066,1.42698727,4291.4,4291.3,0.4333]
[1757166544966,1.42698727,4291.4,4291.3,0.235]
[1757166546375,1.42698727,4291.4,4291.3,0.4333]
[1757166546576,1.42698727,4291.4,4291.3,0.751]
[1757166546781,1.42698727,4291.4,4291.3,0.4333]
[1757166547682,1.42698727,4291.4,4291.3,0.9632]
[1757166548376,0.5008,4291.4,4291.3,0.9632]
[1757166548683,0.5008,4291.5,4291.4,0.7282]
[1757166548977,0.5008,4291.5,4290.5,0.1155]
[1757166548978,0.4169,4290.8,4290.3,0.3177]
[1757166549281,0.5008,4290.3,4290.2,3.936]
[1757166549484,0.5008,4290.3,4290.2,4.171]
[1757166550277,0.5008,4290.3,4290.2,5.25478911]
[1757166551077,1.79658911,4290.3,4290.2,3.2078]
[1757166551277,0.4169,4290.3,4290.2,0.1983]
[1757166551479,0.7128,4290.3,4290.2,0.1983]
[1757166551682,0.5008,4290.3,4290.2,2.04798911]
[1757166552482,0.5008,4290.3,4290.2,0.9642]
[1757166555078,0.7128,4290.3,4290.2,0.4343]
[1757166555282,0.7128,4290.3,4290.2,0.752]
[1757166555585,0.7128,4290.3,4290.2,0.9642]
[1757166556182,0.5008,4290.3,4290.2,0.9642]
[1757166557983,0.4169,4289.3,4289.2,1.95838433]
[1757166558182,0.8293,4289.3,4289.2,3.77037344]
[1757166558390,0.6173,4289.3,4289.2,4.00737344]
[1757166558589,0.1165,4289.3,4289.2,7.21517344]
[1757166559189,0.1165,4289.3,4289.2,11.21517344]
[1757166560686,0.3057,4290.2,4289.2,10.89747344]
[1757166560888,0.5158,4290.2,4290.1,0.7023]
[1757166561190,0.5158,4290.2,4290.1,2.02308911]
[1757166561684,0.5158,4290.2,4290.1,0.9393]
[1757166563692,0.3057,4290.4,4290.1,1.72958911]
[1757166563884,0.3057,4290.4,4290.3,0.7023]
[1757166564083,0.5158,4290.4,4290.3,0.7023]
[1757166565890,0.718,4290.4,4290.3,0.9393]
[1757166566487,0.3057,4290.4,4290.3,0.9393]
[1757166566683,0.5158,4290.4,4290.3,0.9393]
[1757166567281,0.718,4290.4,4290.3,0.9393]
[1757166567989,0.3057,4290.4,4290.3,4.1471]
[1757166568385,0.5158,4290.4,4290.3,4.1471]
[1757166568594,0.3057,4290.9,4290.8,0.4088]
[1757166568893,0.3057,4290.9,4290.8,3.8536]
[1757166569089,0.5158,4290.9,4290.8,3.8536]
[1757166569287,0.5158,4290.9,4290.8,4.1471]
[1757166569889,4.29158911,4291.8,4290.8,4.1471]
[1757166570090,0.5489053,4291.4,4290.9,0.2935]
[1757166570290,0.4123,4291.4,4291.0,1.37728911]
[1757166570491,0.4123,4291.4,4291.1,0.5305]
[1757166570697,3.2078,4291.8,4291.2,0.2026]
[1757166570698,0.718,4291.3,4291.2,0.2026]
[1757166570890,0.5158,4291.3,4291.2,0.7023]
[1757166571088,0.2101,4291.4,4291.3,0.7023]
[1757166571285,0.718,4291.4,4291.3,4.1471]
[1757166571599,0.8412,4291.0,4290.9,0.4088]
[1757166572096,0.8412,4291.0,4290.9,0.237]
[1757166572796,0.8412,4291.0,4290.9,0.4396]
[1757166573597,0.8412,4291.0,4290.9,0.2026]
[1757166573802,0.8412,4291.0,4290.9,0.4396]
[1757166575390,0.1232,4291.5,4291.0,0.2935]
[1757166575591,0.718,4291.1,4291.0,1.49258911]
[1757166575990,0.718,4291.1,4291.0,1.72958911]
[1757166576192,0.718,4291.1,4291.0,2.02308911]
[1757166576390,0.5158,4291.1,4291.0,2.02308911]
[1757166577694,0.718,4291.1,4291.0,2.02308911]
[1757166577904,0.718,4291.1,4291.0,0.4396]
[1757166578090,0.4123,4290.8,4290.7,3.2078]
[1757166578399,0.718,4290.8,4290.7,0.237]
[1757166579796,0.718,4290.8,4290.7,0.4396]
[1757166580002,0.718,4290.8,4290.7,0.237]
[1757166582300,0.718,4290.8,4290.7,0.4396]
[1757166582801,0.718,4290.8,4290.7,0.6458]
[1757166583201,0.718,4290.8,4290.7,0.4396]
[1757166583401,0.718,4290.8,4290.7,0.237]
[1757166585304,0.718,4290.8,4290.7,0.4396]
[1757166586795,0.718,4290.8,4290.7,0.237]
[1757166587001,0.1232,4290.5,4290.2,3.2078]
[1757166587209,0.718,4290.3,4290.2,3.4104]
[1757166587406,0.718,4290.3,4290.2,3.6474]
[1757166589408,0.718,4290.3,4290.2,3.4104]
[1757166589612,0.718,4290.3,4290.2,3.6474]
[1757166590003,0.718,4290.3,4290.2,3.4104]
[1757166590201,0.718,4290.3,4290.2,3.6474]
[1757166590400,0.718,4290.3,4290.2,3.4077]
[1757166590609,0.718,4290.3,4290.2,4.1366]
[1757166592903,0.718,4290.3,4290.2,3.8441]
[1757166594005,7.85319001,4290.3,4289.6,0.2925]
[1757166594203,0.7137647,4290.2,4289.7,1.08378911]
[1757166594403,0.4094,4290.2,4290.1,0.6918]
[1757166594604,0.54602017,4290.2,4290.1,0.6918]
[1757166594906,0.83842017,4290.2,4290.1,0.6918]
[1757166595301,0.7018,4290.2,4290.1,0.6918]
[1757166596107,0.7018,4290.2,4290.1,0.4924]
[1757166596306,0.7018,4290.2,4290.1,0.6918]
[1757166596910,0.7018,4290.2,4290.1,0.4924]
[1757166597105,0.7018,4290.2,4289.8,0.2925]
[1757166597305,0.7018,4290.2,4289.9,0.237]
[1757166597503,0.4094,4290.2,4289.9,0.5295]
[1757166597710,0.5037,4289.6,4289.5,0.5203]
[1757166597911,0.5037,4289.6,4289.5,0.7573]
[1757166598111,0.2113,4289.6,4289.5,0.7573]
[1757166598304,0.2113,4289.6,4289.5,1.0498]
[1757166599115,3.2078,4290.3,4289.5,1.0498]
[1757166599411,0.7018,4290.2,4290.1,0.3993]
[1757166599612,0.7018,4290.2,4290.1,0.6918]
[1757166600300,1.78558911,4290.2,4289.9,0.2925]
[1757166600704,0.5381,4290.0,4289.9,0.4924]
[1757166600904,0.8305,4290.0,4289.9,0.4924]
[1757166601304,0.1287,4289.5,4289.2,1.95838433]
[1757166601506,0.7018,4289.3,4289.2,2.35768433]
[1757166601905,0.7018,4289.3,4289.2,2.65018433]
[1757166601906,0.5037,4289.3,4289.2,2.65018433]
[1757166602105,0.7018,4289.3,4289.2,2.65018433]
[1757166603004,0.7018,4289.3,4289.2,2.88818433]
[1757166603212,0.2113,4289.3,4289.2,2.88818433]
[1757166603710,3.2078,4289.4,4289.3,0.6918]
[1757166604112,0.2924,4289.7,4289.3,0.6918]
[1757166604310,0.7018,4289.7,4289.6,0.6918]
[1757166604709,0.7018,4289.7,4289.6,0.4924]
[1757166605016,0.7018,4289.7,4289.6,0.6918]
[1757166606610,0.2113,4289.7,4289.6,0.6918]
[1757166606915,3.5002,4290.0,4289.6,0.3993]
[1757166607121,0.5037,4289.8,4289.5,0.359]
[1757166607317,0.5037,4289.8,4289.7,0.3993]
[1757166607621,3.2078,4290.0,4289.7,0.6918]
[1757166607807,3.2078,4290.0,4289.9,0.3993]
[1757166608008,3.9096,4290.0,4289.9,0.9298]
[1757166608415,3.9096,4290.0,4289.9,0.6918]
[1757166608608,4.0383,4290.0,4289.9,0.7304]
[1757166608812,3.9096,4290.0,4289.9,0.9298]
[1757166609513,3.2078,4290.0,4289.9,0.9298]
[1757166610917,0.2924,4290.4,4289.9,0.9298]
[1757166611123,3.9096,4290.6,4290.5,0.4924]
[1757166611422,4.62230752,4290.6,4290.5,0.4924]
[1757166611618,4.04606801,4290.6,4290.5,0.4924]
[1757166611815,3.4191,4290.6,4290.5,0.8128]
[1757166612011,3.7115,4290.6,4290.5,0.8128]
[1757166612823,0.5037,4290.6,4290.5,0.8128]
[1757166613025,3.2078,4291.1,4290.5,0.5203]
[1757166613217,0.7018,4291.0,4290.9,0.6918]
[1757166615024,3.2078,4291.1,4291.0,0.4135]
[1757166615230,3.2078,4291.1,4291.0,0.8128]
[1757166615420,3.4191,4291.1,4291.0,0.8128]
[1757166616422,3.4191,4291.1,4290.2,3.2078]
[1757166616423,0.7018,4290.7,4290.6,0.4924]
[1757166616628,0.7018,4290.7,4290.6,0.7304]
[1757166617730,0.7018,4290.7,4290.6,0.238]
[1757166620630,0.1197,4290.5,4290.2,3.2078]
[1757166620928,0.7405,4290.4,4290.3,0.238]
[1757166621130,0.4205,4290.4,4290.3,0.238]
[1757166621330,0.7405,4290.4,4290.3,0.238]
[1757166621824,0.4205,4290.4,4290.0,0.3189]
[1757166622022,0.4205,4290.2,4290.1,0.238]
[1757166622218,0.7405,4290.2,4290.1,0.7532]
[1757166622418,0.7405,4290.2,4290.1,0.9506]
[1757166623424,0.2073,4290.2,4290.1,0.9506]
[1757166623825,0.32,4290.5,4290.2,0.3189]
[1757166624020,0.5273,4290.5,4290.4,0.7126]
[1757166624223,0.2073,4290.5,4290.4,0.7126]
[1757166626729,3.4151,4291.1,4291.0,0.1963]
[1757166626937,4.66085294,4291.1,4291.0,0.7126]
[1757166627231,4.66085294,4291.1,4291.0,0.1963]
[1757166627532,0.7405,4290.8,4290.7,0.7532]
[1757166627934,0.7405,4290.8,4290.7,0.9506]
[1757166631834,0.7405,4291.4,4291.3,0.7126]
[1757166632835,0.7405,4291.4,4290.6,3.2078]
[1757166633033,0.4205,4290.7,4290.0,3.6492]
[1757166633233,0.4205,4290.7,4290.0,3.723]
[1757166633234,0.7405,4290.1,4290.0,3.723]
[1757166634338,0.7405,4290.1,4290.0,0.238]
[1757166634642,0.7405,4289.8,4289.7,0.5152]
[1757166634841,0.7405,4289.8,4289.7,0.7532]
[1757166635235,0.5273,4289.8,4289.7,0.9506]
[1757166635635,0.2073,4289.8,4289.7,0.9506]
[1757166637139,0.5273,4289.8,4289.7,0.9506]
[1757166639745,0.2073,4289.8,4289.7,0.9506]
[1757166640243,0.32,4290.1,4289.8,0.3189]